[Event "Vener-dì-Lampo"]
[Site "Chess.com"]
[Date "2020.05.08"]
[Round "3"]
[White "markk000"]
[Black "sirmale49"]
[Result "1-0"]
[WhiteElo "1549"]
[BlackElo "1379"]
[TimeControl "300+2"]
[EndTime "12:33:56 PDT"]
[Termination "markk000 ha vinto per abbandono"]

1. d4 {[%clk 0:04:58.7]} 1... d5 {[%clk 0:04:59.5]} 2. c4 {[%clk 0:04:57.1]}
2... e5 {[%clk 0:04:59.8]} 3. dxe5 {[%clk 0:04:52.8]} 3... d4 {[%clk 0:04:59.8]}
4. Nf3 {[%clk 0:04:51.2]} 4... Nc6 {[%clk 0:04:59.2]} 5. Bg5 {[%clk 0:04:46.8]}
5... Be7 {[%clk 0:04:54.3]} 6. Bxe7 {[%clk 0:04:46.5]} 6... Ngxe7 {[%clk
0:04:51.9]} 7. e3 {[%clk 0:04:47.2]} 7... dxe3 {[%clk 0:04:48.8]} 8. Qxd8+
{[%clk 0:04:49.1]} 8... Nxd8 {[%clk 0:04:48.8]} 9. fxe3 {[%clk 0:04:49.1]} 9...
O-O {[%clk 0:04:48.5]} 10. Be2 {[%clk 0:04:47]} 10... Nf5 {[%clk 0:04:44.2]} 11.
e4 {[%clk 0:04:42.1]} 11... Ne7 {[%clk 0:04:33.5]} 12. O-O {[%clk 0:04:41.5]}
12... Ndc6 {[%clk 0:04:29]} 13. Nc3 {[%clk 0:04:35.4]} 13... Bg4 {[%clk
0:04:22.5]} 14. Nd5 {[%clk 0:04:30.9]} 14... Bxf3 {[%clk 0:04:08.9]} 15. Nxe7+
{[%clk 0:04:22.9]} 15... Nxe7 {[%clk 0:04:08.4]} 16. Bxf3 {[%clk 0:04:23.7]}
16... Rad8 {[%clk 0:04:05.8]} 17. Rad1 {[%clk 0:04:21.5]} 17... Rxd1 {[%clk
0:04:02.3]} 18. Rxd1 {[%clk 0:04:18.9]} 18... Ng6 {[%clk 0:04:01.5]} 19. Rd7
{[%clk 0:04:16.6]} 19... Nxe5 {[%clk 0:03:58.9]} 20. Rxc7 {[%clk 0:04:13.2]}
20... Nxf3+ {[%clk 0:03:52.7]} 21. gxf3 {[%clk 0:04:12.4]} 21... Rb8 {[%clk
0:03:51.9]} 22. Kf2 {[%clk 0:04:11.6]} 22... Kf8 {[%clk 0:03:48.2]} 23. Ke3
{[%clk 0:04:07.6]} 23... g5 {[%clk 0:03:43.2]} 24. Kd4 {[%clk 0:04:07.3]} 24...
f6 {[%clk 0:03:39.5]} 25. e5 {[%clk 0:04:03.5]} 25... Rd8+ {[%clk 0:03:36.9]}
26. Ke4 {[%clk 0:04:03.9]} 26... fxe5 {[%clk 0:03:34.9]} 27. Kxe5 {[%clk
0:04:03.4]} 27... Re8+ {[%clk 0:03:35.2]} 28. Kf5 {[%clk 0:04:02.1]} 28... h6
{[%clk 0:03:34.4]} 29. Rxb7 {[%clk 0:04:00]} 29... Re3 {[%clk 0:03:20.4]} 30.
Kg4 {[%clk 0:03:57.1]} 30... Re2 {[%clk 0:03:05.5]} 31. h4 {[%clk 0:03:49.5]}
31... gxh4 {[%clk 0:03:01.4]} 32. Kxh4 {[%clk 0:03:51.4]} 32... Rh2+ {[%clk
0:03:00.3]} 33. Kg4 {[%clk 0:03:52.1]} 33... Rd2 {[%clk 0:02:58.3]} 34. c5
{[%clk 0:03:45.5]} 34... Rc2 {[%clk 0:02:42.7]} 35. Kh5 {[%clk 0:03:24.8]} 35...
Rxc5+ {[%clk 0:02:37.2]} 36. Kxh6 {[%clk 0:03:25.5]} 36... Rc6+ {[%clk
0:02:36.7]} 37. Kg5 {[%clk 0:03:24.7]} 37... Rc5+ {[%clk 0:02:36.6]} 38. Kg4
{[%clk 0:03:25.8]} 38... Rc4+ {[%clk 0:02:36.2]} 39. f4 {[%clk 0:03:27.1]} 39...
Rc2 {[%clk 0:02:29.5]} 40. a4 {[%clk 0:03:25.8]} 40... Rc4 {[%clk 0:02:22.6]}
41. b4 {[%clk 0:03:23.3]} 41... Re4 {[%clk 0:02:18.4]} 42. Kf5 {[%clk 0:03:21]}
42... Re1 {[%clk 0:02:15.3]} 43. Kf6 {[%clk 0:03:17.6]} 43... Kg8 {[%clk
0:02:07.4]} 44. Rxa7 {[%clk 0:03:13.4]} 44... Re4 {[%clk 0:02:05]} 45. Ra8+
{[%clk 0:03:08]} 45... Kh7 {[%clk 0:02:04.1]} 46. b5 {[%clk 0:03:08.2]} 46...
Rxf4+ {[%clk 0:02:03.2]} 47. Ke5 {[%clk 0:03:05.2]} 47... Rf1 {[%clk 0:01:56.5]}
48. b6 {[%clk 0:03:01.6]} 48... Re1+ {[%clk 0:01:56.5]} 49. Kd6 {[%clk
0:02:59.4]} 49... Rd1+ {[%clk 0:01:55.9]} 50. Kc7 {[%clk 0:02:58.3]} 50... Rc1+
{[%clk 0:01:55.1]} 51. Kb7 {[%clk 0:02:58.7]} 51... Rf1 {[%clk 0:01:49.2]} 52.
Rc8 {[%clk 0:02:55.8]} 52... Ra1 {[%clk 0:01:44.3]} 53. Rc4 {[%clk 0:02:54.2]}
53... Kg7 {[%clk 0:01:34.4]} 54. Kc7 {[%clk 0:02:52.8]} 54... Rf1 {[%clk
0:01:25.5]} 55. b7 {[%clk 0:02:49]} 55... Rf7+ {[%clk 0:01:22.2]} 56. Kb6 {[%clk
0:02:45.8]} 56... Rf6+ {[%clk 0:01:21.1]} 57. Rc6 {[%clk 0:02:45.3]} 57... Rf8
{[%clk 0:01:17.5]} 58. Ka7 {[%clk 0:02:42.2]} 1-0

[Event "Vener-dì-Lampo"]
[Site "Chess.com"]
[Date "2020.05.08"]
[Round "3"]
[White "mr6701"]
[Black "GB86_CHESS"]
[Result "1-0"]
[WhiteElo "1998"]
[BlackElo "1763"]
[TimeControl "300+2"]
[EndTime "12:34:56 PDT"]
[Termination "mr6701 ha vinto per abbandono"]

1. e4 {[%clk 0:05:01.9]} 1... c5 {[%clk 0:05:00]} 2. d4 {[%clk 0:05:01.8]} 2...
cxd4 {[%clk 0:04:59.9]} 3. c3 {[%clk 0:05:03.1]} 3... d3 {[%clk 0:05:00.9]} 4.
Bxd3 {[%clk 0:05:03.5]} 4... d6 {[%clk 0:04:58.8]} 5. Nf3 {[%clk 0:05:04.2]}
5... Nf6 {[%clk 0:05:00]} 6. Qc2 {[%clk 0:05:04.6]} 6... Nc6 {[%clk 0:04:57.3]}
7. O-O {[%clk 0:05:05.3]} 7... Bg4 {[%clk 0:04:57.1]} 8. Nh4 {[%clk 0:04:54.4]}
8... Ne5 {[%clk 0:04:50.5]} 9. f3 {[%clk 0:04:47.5]} 9... Nxd3 {[%clk
0:04:44.5]} 10. Qxd3 {[%clk 0:04:49.4]} 10... Bd7 {[%clk 0:04:29.9]} 11. Be3
{[%clk 0:04:43.4]} 11... g6 {[%clk 0:04:30.1]} 12. Na3 {[%clk 0:04:40.6]} 12...
Bg7 {[%clk 0:04:30.5]} 13. Rad1 {[%clk 0:04:35.4]} 13... Qa5 {[%clk 0:04:19.4]}
14. Nc4 {[%clk 0:04:16.6]} 14... Qh5 {[%clk 0:04:10.4]} 15. g3 {[%clk
0:03:57.8]} 15... O-O {[%clk 0:04:09.2]} 16. Ng2 {[%clk 0:03:13.4]} 16... Qb5
{[%clk 0:03:35.8]} 17. Na3 {[%clk 0:02:42.9]} 17... Qxd3 {[%clk 0:03:34.6]} 18.
Rxd3 {[%clk 0:02:43.1]} 18... Bh3 {[%clk 0:03:32.3]} 19. Rfd1 {[%clk 0:02:41.4]}
19... Be6 {[%clk 0:03:29.1]} 20. b3 {[%clk 0:02:40]} 20... Rac8 {[%clk
0:03:26.9]} 21. c4 {[%clk 0:02:41]} 21... h6 {[%clk 0:03:18.5]} 22. Nc2 {[%clk
0:02:32.9]} 22... g5 {[%clk 0:03:15.8]} 23. a4 {[%clk 0:02:28.3]} 23... Nd7
{[%clk 0:03:14.8]} 24. Bxa7 {[%clk 0:02:27.6]} 24... Ne5 {[%clk 0:03:12.1]} 25.
Re3 {[%clk 0:02:21.5]} 25... Bd7 {[%clk 0:02:59.1]} 26. Bd4 {[%clk 0:02:18]}
26... b5 {[%clk 0:02:54.5]} 27. axb5 {[%clk 0:02:16.6]} 27... Bxb5 {[%clk
0:02:54.7]} 28. Na3 {[%clk 0:02:15.2]} 28... Ba6 {[%clk 0:02:50.9]} 29. Nb1
{[%clk 0:02:11.8]} 29... Bb7 {[%clk 0:02:48.8]} 30. Nc3 {[%clk 0:02:11.9]} 30...
f5 {[%clk 0:02:41.9]} 31. Nd5 {[%clk 0:02:07.3]} 31... Bxd5 {[%clk 0:02:34.1]}
32. exd5 {[%clk 0:02:08]} 32... f4 {[%clk 0:02:31.2]} 33. gxf4 {[%clk
0:02:01.8]} 33... gxf4 {[%clk 0:02:31.5]} 34. Rc3 {[%clk 0:01:58.2]} 34... Rf5
{[%clk 0:02:28.2]} 35. Kf2 {[%clk 0:01:50.4]} 35... Rh5 {[%clk 0:02:27.6]} 36.
h4 {[%clk 0:01:50]} 36... Rf5 {[%clk 0:02:26.7]} 37. Rg1 {[%clk 0:01:49]} 37...
Kf7 {[%clk 0:02:24.6]} 38. h5 {[%clk 0:01:39.5]} 38... Bf6 {[%clk 0:02:22]} 39.
Ke2 {[%clk 0:01:31.7]} 39... Ra8 {[%clk 0:02:21]} 40. Rc2 {[%clk 0:01:30.2]}
40... Rb8 {[%clk 0:02:20.1]} 41. Rb1 {[%clk 0:01:24.9]} 41... Rb4 {[%clk
0:02:18.8]} 42. Bc3 {[%clk 0:01:23.3]} 42... Rb8 {[%clk 0:02:17.9]} 43. Bxe5
{[%clk 0:01:18.6]} 43... Bxe5 {[%clk 0:02:17.5]} 44. b4 {[%clk 0:01:15.8]} 44...
Rxh5 {[%clk 0:02:16.9]} 45. b5 {[%clk 0:01:16.4]} 45... Rh2 {[%clk 0:02:16.8]}
46. Kd3 {[%clk 0:01:16.5]} 46... Rg8 {[%clk 0:02:15.4]} 47. Ne1 {[%clk 0:01:15]}
47... Rxc2 {[%clk 0:02:13.2]} 48. Nxc2 {[%clk 0:01:15.7]} 48... e6 {[%clk
0:02:14]} 49. dxe6+ {[%clk 0:01:14.5]} 49... Kxe6 {[%clk 0:02:14.8]} 50. Nd4+
{[%clk 0:01:15.5]} 50... Kd7 {[%clk 0:02:06.8]} 51. Ke4 {[%clk 0:01:14]} 51...
Rc8 {[%clk 0:02:01]} 52. Nc6 {[%clk 0:01:14.8]} 52... Rxc6 {[%clk 0:01:49.1]}
53. bxc6+ {[%clk 0:01:14.8]} 53... Kxc6 {[%clk 0:01:50.4]} 54. Kd3 {[%clk
0:01:11.5]} 54... h5 {[%clk 0:01:48.4]} 55. Rh1 {[%clk 0:01:10.9]} 55... d5
{[%clk 0:01:49.6]} 56. cxd5+ {[%clk 0:01:10]} 56... Kxd5 {[%clk 0:01:49.9]} 57.
Rxh5 {[%clk 0:01:11.4]} 57... Ke6 {[%clk 0:01:42.4]} 58. Ke4 {[%clk 0:01:12]}
58... Bb8 {[%clk 0:01:41.8]} 59. Rh6+ {[%clk 0:01:11.3]} 59... Kf7 {[%clk
0:01:41.2]} 60. Kf5 {[%clk 0:01:12.2]} 60... Kg7 {[%clk 0:01:40.3]} 61. Rb6
{[%clk 0:01:11.2]} 1-0

[Event "Vener-dì-Lampo"]
[Site "Chess.com"]
[Date "2020.05.08"]
[Round "3"]
[White "pedrak"]
[Black "BAKR1980"]
[Result "1-0"]
[WhiteElo "2008"]
[BlackElo "1592"]
[TimeControl "300+2"]
[EndTime "12:36:04 PDT"]
[Termination "pedrak ha vinto per abbandono"]

1. d4 {[%clk 0:04:34.3]} 1... d5 {[%clk 0:04:59.7]} 2. Nf3 {[%clk 0:04:34.9]}
2... Nc6 {[%clk 0:04:59.9]} 3. Bf4 {[%clk 0:04:35.3]} 3... Bg4 {[%clk
0:05:00.2]} 4. Nbd2 {[%clk 0:04:35.6]} 4... Qd7 {[%clk 0:05:00.7]} 5. c3 {[%clk
0:04:36.2]} 5... e6 {[%clk 0:05:01.5]} 6. Qa4 {[%clk 0:04:33]} 6... Bd6 {[%clk
0:04:52.4]} 7. Bg3 {[%clk 0:04:28]} 7... Nge7 {[%clk 0:04:51.5]} 8. e3 {[%clk
0:04:28.3]} 8... a6 {[%clk 0:04:51.2]} 9. Bd3 {[%clk 0:04:28.2]} 9... f5 {[%clk
0:04:50.2]} 10. Qc2 {[%clk 0:04:21.3]} 10... g6 {[%clk 0:04:44.5]} 11. Ne5
{[%clk 0:04:13.6]} 11... Bxe5 {[%clk 0:04:39.2]} 12. dxe5 {[%clk 0:04:04.4]}
12... O-O-O {[%clk 0:04:34.4]} 13. b4 {[%clk 0:03:55.5]} 13... g5 {[%clk
0:04:26.8]} 14. b5 {[%clk 0:03:54]} 14... axb5 {[%clk 0:04:27.1]} 15. Bxb5
{[%clk 0:03:54.3]} 15... d4 {[%clk 0:04:16]} 16. cxd4 {[%clk 0:03:43.8]} 16...
Qd5 {[%clk 0:04:16.3]} 17. Bf1 {[%clk 0:03:35.1]} 17... f4 {[%clk 0:04:11.4]}
18. exf4 {[%clk 0:03:08.5]} 18... gxf4 {[%clk 0:04:05.4]} 19. Bxf4 {[%clk
0:03:06.5]} 19... Qxd4 {[%clk 0:04:05.7]} 20. Be3 {[%clk 0:02:59.6]} 20... Qxe5
{[%clk 0:04:05.9]} 21. Rc1 {[%clk 0:02:31.2]} 21... Nf5 {[%clk 0:03:48.8]} 22.
Nc4 {[%clk 0:02:30.9]} 22... Nxe3 {[%clk 0:03:30.7]} 23. Nxe3 {[%clk 0:02:23.7]}
23... Qa5+ {[%clk 0:03:27.8]} 24. Qc3 {[%clk 0:02:20.7]} 24... Qg5 {[%clk
0:03:06.7]} 25. h3 {[%clk 0:01:51.7]} 25... Bh5 {[%clk 0:02:50.4]} 26. Bd3
{[%clk 0:01:47.3]} 26... Rhg8 {[%clk 0:02:35.5]} 27. Be4 {[%clk 0:01:38]} 27...
Be8 {[%clk 0:02:26.6]} 28. O-O {[%clk 0:01:33.3]} 28... Rd7 {[%clk 0:01:49.9]}
29. Qa3 {[%clk 0:01:31.7]} 29... Rdg7 {[%clk 0:01:37.1]} 30. Rfd1 {[%clk
0:01:11.4]} 30... Nb8 {[%clk 0:01:28.4]} 31. Qa7 {[%clk 0:01:03.2]} 31... Qb5
{[%clk 0:01:21.2]} 32. Rd8+ {[%clk 0:00:33.3]} 32... Kxd8 {[%clk 0:01:19.5]} 33.
Qxb8+ {[%clk 0:00:34]} 33... Ke7 {[%clk 0:01:19.1]} 34. Rxc7+ {[%clk 0:00:33.9]}
34... Bd7 {[%clk 0:01:02.8]} 35. Qxb7 {[%clk 0:00:27]} 35... Qxb7 {[%clk
0:00:50.6]} 36. Rxb7 {[%clk 0:00:28]} 36... Kf6 {[%clk 0:00:43.6]} 37. Ng4+
{[%clk 0:00:26.5]} 37... Ke7 {[%clk 0:00:40.3]} 38. Ne5 {[%clk 0:00:26.6]} 38...
Kd6 {[%clk 0:00:38.4]} 39. Nc4+ {[%clk 0:00:26]} 39... Kc5 {[%clk 0:00:33.6]}
40. Ne3 {[%clk 0:00:24.8]} 40... Bc6 {[%clk 0:00:33.2]} 41. Bxc6 {[%clk
0:00:25]} 41... Kxc6 {[%clk 0:00:32.8]} 42. Rb2 {[%clk 0:00:25]} 42... e5 {[%clk
0:00:32.4]} 43. Rc2+ {[%clk 0:00:25.7]} 43... Kb5 {[%clk 0:00:31.7]} 44. g3
{[%clk 0:00:24.6]} 44... Ra7 {[%clk 0:00:31.1]} 45. Nd5 {[%clk 0:00:22]} 45...
Rga8 {[%clk 0:00:30.2]} 46. Nc3+ {[%clk 0:00:19.2]} 46... Kb4 {[%clk 0:00:27.4]}
47. Kg2 {[%clk 0:00:20.1]} 47... Rc7 {[%clk 0:00:24.5]} 48. Nd5+ {[%clk
0:00:20.9]} 48... Kb5 {[%clk 0:00:20.5]} 49. Nxc7+ {[%clk 0:00:21.8]} 1-0